bitfinex/quotes_ETHUSD_20250620
["timestamp","ask_amount","ask_price","bid_price","bid_amount"]
[1750386016407,18.019,2526.4,2526.2,1.59628865]
[1750386016607,21.97727648,2526.4,2526.2,1.59628865]
[1750386016994,21.97727648,2526.4,2526.2,1.53888865]
[1750386017169,18.019,2526.4,2526.3,0.0574]
[1750386017691,21.97720139,2526.4,2526.3,0.0574]
[1750386018368,21.97720139,2526.4,2526.2,1.53888865]
[1750386018996,21.97720139,2526.4,2526.2,1.59628865]
[1750386019404,18.019,2526.4,2526.2,1.53888865]
[1750386019605,18.019,2526.4,2526.3,0.0574]
[1750386032761,21.97720139,2526.4,2526.3,0.0574]
[1750386033047,18.019,2526.4,2526.3,0.0574]
[1750386033216,26.72169225,2526.4,2526.2,1.53888865]
[1750386036945,20.86256913,2526.3,2526.2,1.53888865]
[1750386037144,20.90426913,2526.3,2526.2,1.53888865]
[1750386038338,52.22366913,2526.3,2525.8,2.24655647]
[1750386038650,42.21929597,2525.9,2525.8,2.24655647]
[1750386038952,50.23729597,2525.9,2525.8,2.24655647]
[1750386039246,60.23729597,2525.9,2525.8,2.24655647]
[1750386039718,60.62718886,2525.9,2525.8,2.24655647]
[1750386039920,63.46526187,2525.9,2525.8,2.24655647]
[1750386040438,33.46526187,2525.9,2525.8,2.24655647]
[1750386040616,63.46526187,2525.9,2525.8,2.24655647]
[1750386043059,56.51935081,2525.9,2525.8,2.24655647]
[1750386043351,56.56105081,2525.9,2525.8,1e-08]
[1750386043549,56.57805081,2525.9,2525.8,1e-08]
[1750386043946,48.50135081,2525.9,2525.8,1e-08]
[1750386044118,56.57805081,2525.9,2525.8,1e-08]
[1750386045460,48.54305081,2525.9,2525.8,1e-08]
[1750386045668,56.95698911,2525.9,2525.8,1e-08]
[1750386046353,56.95694796,2525.9,2525.8,1e-08]
[1750386047568,2.00969331,2525.9,2525.8,1e-08]
[1750386047897,8.41769331,2525.9,2525.8,0.05680001]
[1750386048803,0.36969331,2525.9,2525.8,0.05680001]
[1750386049007,8.41955702,2525.9,2525.8,0.05680001]
[1750386049300,8.41955704,2525.9,2525.8,0.05680001]
[1750386049599,2.00955704,2525.9,2525.8,0.05680001]
[1750386049897,8.41855704,2525.9,2525.8,0.05680001]
[1750386050760,8.049,2525.9,2525.8,0.05680001]
[1750386051399,14.95321106,2525.9,2525.8,0.05680001]
[1750386052173,14.95221106,2525.9,2525.8,0.05680001]
[1750386053915,14.95221106,2525.9,2525.8,1e-08]
[1750386054472,8.048,2525.9,2525.8,1e-08]
[1750386059514,12.00698491,2525.9,2525.8,1e-08]
[1750386060479,3.95898491,2525.9,2525.8,1e-08]
[1750386060679,18.043,2525.9,2525.8,1e-08]
[1750386062886,18.042,2525.9,2525.8,1e-08]
[1750386063624,10.0,2525.9,2525.8,1e-08]
[1750386063929,18.042,2525.9,2525.8,1e-08]
[1750386066902,22.00098491,2525.9,2525.8,1e-08]
[1750386068310,18.042,2525.9,2525.8,1e-08]
[1750386070239,22.00098491,2525.9,2525.8,1e-08]
[1750386070641,34.15936829,2525.9,2525.8,1e-08]
[1750386070961,64.15936829,2525.9,2525.8,1e-08]
[1750386073473,62.85846829,2525.9,2525.8,1e-08]
[1750386073637,58.90519597,2525.9,2525.8,1e-08]
[1750386075450,40.0,2525.9,2525.8,1e-08]
[1750386075651,18.044,2525.9,2525.8,1e-08]
[1750386075869,18.044,2525.9,2525.8,0.06110001]
[1750386076239,18.046,2525.9,2525.8,4.02024166]
[1750386076576,18.046,2525.9,2525.8,5.30897583]
[1750386076577,8.046,2525.9,2525.8,5.30897583]
[1750386077589,8.047,2525.9,2525.8,5.30897583]
[1750386078864,1.639,2525.9,2525.8,5.30897583]
[1750386079069,8.047,2525.9,2525.8,5.30897583]
[1750386079674,1.639,2525.9,2525.8,5.30897583]
[1750386079881,8.046,2525.9,2525.8,5.34856297]
[1750386080183,8.046,2525.9,2525.8,5.30897583]
[1750386080893,9.513,2526.0,2525.9,4.77868491]
[1750386081185,11.152,2526.0,2525.9,6.14099827]
[1750386081385,17.558,2526.0,2525.9,6.1805835]
[1750386081687,17.56,2526.0,2525.9,6.1805835]
[1750386081900,17.56,2526.0,2525.9,6.14099827]
[1750386090531,9.513,2526.0,2525.9,6.14099827]
[1750386090721,17.557,2526.0,2525.9,6.18058363]
[1750386090908,17.557,2526.0,2525.9,6.14099827]
[1750386092706,17.557,2526.0,2525.9,6.18058363]
[1750386095733,8.044,2526.0,2525.9,6.18058363]
[1750386098849,1.639,2526.0,2525.9,6.18058363]
[1750386099146,10.7621,2526.8,2526.6,3.95774217]
[1750386099349,1.639,2526.7,2526.6,4.01968817]
[1750386099655,8.043,2526.7,2526.6,4.01968817]
[1750386099855,8.043,2526.7,2526.6,3.95778817]
[1750386104351,12.30033821,2526.9,2526.6,3.95778817]
[1750386104649,18.044,2526.8,2526.7,4.01963142]
[1750386104812,11.639,2526.8,2526.7,4.01963142]
[1750386105018,18.044,2526.8,2526.7,4.01963142]
[1750386106138,11.639,2526.8,2526.7,4.01963142]
[1750386106455,18.044,2526.8,2526.7,4.01963142]
[1750386106951,18.044,2526.8,2526.6,3.95780355]
[1750386107177,18.044,2526.8,2526.6,4.01970355]
[1750386107322,18.044,2526.8,2526.7,3.95773142]
[1750386107655,18.044,2526.8,2526.6,0.0619]
[1750386108159,18.044,2526.8,2526.5,4.01994472]
[1750386108326,18.044,2526.8,2526.6,3.95787067]
[1750386112569,18.044,2526.8,2526.6,4.01977067]
[1750386112752,11.639,2526.8,2526.7,3.95773142]
[1750386112948,18.04,2526.8,2526.7,3.95773142]
[1750386113471,18.04,2526.8,2526.6,4.01969391]
[1750386116170,18.04,2526.8,2526.6,4.01969391]
[1750386116328,18.04,2526.8,2526.7,3.95773142]
[1750386116770,11.639,2526.8,2526.7,3.95773142]
[1750386116975,18.039,2526.8,2526.7,3.95773142]
[1750386117130,18.039,2526.8,2526.7,4.01963142]
[1750386121658,18.039,2526.8,2526.7,0.0619]
[1750386122032,18.039,2526.8,2526.6,4.01969609]
[1750386122259,18.039,2526.8,2526.7,3.95773142]
[1750386123290,11.639,2526.8,2526.7,3.95773142]
[1750386123460,10.0,2526.8,2526.7,5.62299112]
[1750386123655,18.037,2526.8,2526.7,5.62299112]
[1750386125180,18.037,2526.8,2526.7,4.83143142]
[1750386130587,18.037,2526.8,2526.7,0.8737]
[1750386131114,18.037,2526.8,2526.7,4.83143142]
[1750386131710,18.037,2526.8,2526.7,0.8737]
[1750386132392,18.037,2526.8,2526.4,0.8245]
[1750386132594,18.8089,2526.8,2526.3,3.95824702]
[1750386132797,7.67611106,2526.5,2526.0,4.7704]
[1750386133108,6.397,2526.4,2526.1,4.01893452]
[1750386133306,1.641,2526.3,2526.1,3.95853452]
[1750386133606,6.399,2526.2,2526.1,3.95853452]
[1750386136236,6.399,2526.2,2526.1,4.01893452]
[1750386136623,6.399,2526.2,2526.1,3.95853452]
[1750386144750,6.399,2526.2,2526.1,4.01893452]
[1750386145660,10.7741,2526.7,2526.5,3.95795004]
[1750386145975,10.0,2526.7,2526.6,4.01828807]
[1750386146114,18.031,2526.7,2526.6,4.01828807]
[1750386146856,11.637,2526.7,2526.6,4.01828807]
[1750386147062,18.034,2526.7,2526.6,4.01828807]
[1750386147258,18.034,2526.7,2526.6,3.95788807]
[1750386147459,20.64303753,2526.7,2526.6,3.95788807]
[1750386147869,9.509,2526.8,2526.7,3.95773142]
[1750386148161,27.543,2526.8,2526.7,4.01813142]
[1750386149676,21.146,2526.8,2526.7,4.01813142]
[1750386149828,27.543,2526.8,2526.7,4.01813142]
[1750386159652,19.509,2526.8,2526.7,4.01813142]
[1750386159961,27.54,2526.8,2526.7,4.01813142]
[1750386163307,2.79033821,2526.9,2526.7,4.89472239]
[1750386163604,2.79033821,2526.9,2526.8,4.82087479]
[1750386163883,1.637,2527.0,2526.9,4.75831818]
[1750386164044,8.03,2527.0,2526.9,4.82071818]
[1750386164363,8.03,2527.0,2526.9,4.86028684]
[1750386164565,1.637,2527.0,2526.9,6.22550524]
[1750386164764,8.03,2527.0,2526.9,6.22550524]
[1750386165687,1.637,2527.3,2527.2,0.8009]
[1750386165986,1.637,2527.3,2527.2,4.85981192]
[1750386166172,8.03,2527.3,2527.2,4.85981192]
[1750386166360,8.03,2527.3,2527.2,5.74150361]
[1750386166560,1.637,2527.3,2527.2,5.74150361]
[1750386166760,8.03,2527.3,2527.2,5.74150361]
[1750386167586,8.03,2527.3,2527.2,5.70194009]
[1750386171886,8.024,2527.3,2527.2,5.70194009]
[1750386173832,8.024,2527.3,2527.2,4.90104009]
[1750386174123,8.024,2527.3,2527.2,4.0193484]
[1750386178399,8.024,2527.3,2527.2,3.9569484]
[1750386178649,8.024,2527.3,2527.2,4.0193484]
[1750386179399,1.634,2527.3,2527.2,4.0193484]
[1750386179599,8.03,2527.3,2527.2,4.0193484]
[1750386182804,8.03,2527.3,2527.2,4.05891361]
[1750386191358,8.03,2527.3,2527.2,4.0193484]
[1750386192652,8.03,2527.3,2527.2,4.05891376]
[1750386192858,8.03,2527.3,2527.2,4.0193484]
[1750386193260,0.7678,2528.2,2527.8,3.95598472]
[1750386193461,1.634,2528.1,2527.4,6.90421106]
[1750386193759,1.634,2528.1,2528.0,3.95554546]
[1750386193964,8.026,2528.1,2528.0,3.95554546]
[1750386194131,1.634,2528.1,2528.0,3.95554546]
[1750386194535,8.027,2528.1,2528.0,3.95554546]
[1750386197886,10.0,2528.0,2527.4,3.95663527]
[1750386198046,6.94591106,2527.8,2527.6,3.95629226]
[1750386198251,6.94591106,2527.8,2527.4,3.95654548]
[1750386198252,0.8061,2527.6,2527.4,3.95654548]
[1750386198452,1.634,2527.5,2527.4,3.95654548]
[1750386198989,0.8061,2527.6,2527.5,3.95647873]
[1750386199191,8.8341,2527.6,2527.5,3.95647873]
[1750386215586,1.634,2527.6,2527.5,4.01757873]
[1750386215917,8.022,2527.6,2527.5,4.01757873]
[1750386216116,1.634,2527.6,2527.5,4.81499115]
[1750386216308,8.022,2527.6,2527.5,4.81499115]
[1750386218226,8.022,2527.6,2527.5,4.75389115]
[1750386220421,8.022,2527.6,2527.5,4.81619115]
[1750386226202,8.022,2527.6,2527.5,4.01877873]
[1750386226604,8.022,2527.6,2527.5,3.95647873]
[1750386240375,8.022,2527.6,2527.0,4.36165386]
[1750386240376,8.022,2527.6,2527.3,3.9566444]
[1750386240675,0.0417,2527.4,2527.1,3.9569524]
[1750386240887,5.55985537,2527.4,2527.1,3.9569524]
[1750386241066,5.55985537,2527.4,2527.2,3.95688334]
[1750386241235,0.7598,2527.5,2527.4,3.95663527]
[1750386241432,8.7798,2527.5,2527.4,3.95663527]
[1750386241658,8.02,2527.5,2527.4,3.95663527]
[1750386243556,8.02,2527.5,2527.3,3.95670218]
[1750386243961,9.99217336,2527.5,2527.3,3.95670218]
[1750386244155,0.8454,2527.4,2527.2,3.9568687]
[1750386244885,0.8454,2527.4,2527.2,3.95693431]
[1750386245296,0.8454,2527.4,2527.3,3.95679183]
[1750386245474,0.8037,2527.4,2527.3,3.95679183]
[1750386248245,8.02,2527.5,2527.4,3.95663527]
[1750386249568,10.7738,2527.6,2527.4,3.95663527]
[1750386249741,8.02,2527.5,2527.4,3.95663527]
[1750386252465,8.02,2527.5,2527.3,3.95671433]
[1750386253267,8.02,2527.5,2527.3,3.95673235]
[1750386255897,8.0617,2527.5,2527.3,3.95673235]
[1750386256597,8.02,2527.5,2527.3,3.95673235]
[1750386257308,8.02,2527.5,2527.2,3.95680489]
[1750386257454,8.02,2527.5,2527.3,3.95678375]
[1750386257658,9.29100178,2527.5,2527.3,3.95678375]
[1750386258958,8.02,2527.5,2527.3,3.95678375]
[1750386259156,0.7738,2527.6,2527.4,3.95663527]
[1750386259408,8.02,2527.5,2527.4,3.95663527]
[1750386260965,0.7738,2527.6,2527.3,3.95671973]
[1750386261293,8.02,2527.5,2527.3,3.95671973]
[1750386261467,9.89938,2527.5,2527.3,3.95671973]
[1750386262193,9.89938,2527.5,2527.3,3.95448079]
[1750386263989,9.89938,2527.5,2527.2,3.95685569]
[1750386264398,9.89938,2527.5,2527.3,3.95678161]
[1750386264600,9.89938,2527.5,2527.2,3.95686531]
[1750386264817,1.44777919,2527.4,2527.0,3.95713602]
[1750386265098,5.5187183,2527.1,2526.7,4.01535535]
[1750386265296,8.02,2527.0,2526.7,0.0577]
[1750386265506,8.02,2527.0,2526.9,3.95741818]
[1750386267388,8.02,2527.0,2526.9,4.01511818]
[1750386273142,10.8014,2527.3,2527.0,3.95718357]
[1750386273358,8.02,2527.2,2527.1,4.01479502]
[1750386274508,10.0,2527.4,2527.2,4.01454115]
[1750386274710,8.02,2527.3,2527.2,4.01454115]
[1750386275447,8.02,2527.3,2527.1,4.01473033]
[1750386277448,8.02,2527.3,2527.1,3.95703033]
[1750386277745,1.802,2527.2,2527.0,4.01706778]
[1750386278468,8.02,2527.3,2527.0,4.01706778]
[1750386280142,8.02,2527.3,2527.1,3.95701616]
[1750386280357,8.02,2527.3,2527.1,4.01691616]
[1750386281060,8.02,2527.2,2527.1,4.01691616]
[1750386282955,10.0,2527.4,2527.1,4.01691616]
[1750386283256,9.68377708,2527.3,2527.1,4.01691616]
[1750386283870,9.68377708,2527.3,2527.1,0.0599]
[1750386285361,9.68377708,2527.3,2527.0,4.01707318]
[1750386286367,9.68377708,2527.3,2527.0,3.95717318]
[1750386286527,9.68377708,2527.3,2527.1,0.0599]
[1750386286971,1.96837771,2527.2,2527.1,0.0599]
[1750386287471,9.68377708,2527.3,2527.1,4.0169948]
[1750386290076,9.68377708,2527.3,2527.0,4.01707266]
[1750386290569,9.68377708,2527.3,2527.0,3.95717266]
[1750386290733,9.68377708,2527.3,2527.0,4.01707266]
[1750386291933,9.68377708,2527.3,2527.0,3.95717266]
[1750386292970,9.68377708,2527.3,2526.8,4.79441136]
[1750386292971,5.51874585,2527.2,2526.9,3.95733122]
[1750386293138,6.388,2527.1,2526.9,4.01723122]
[1750386294057,6.388,2527.1,2527.0,3.95726157]
[1750386294535,6.388,2527.1,2527.0,4.01716157]
[1750386299172,6.388,2527.1,2527.0,3.95726157]
[1750386302041,6.388,2527.1,2526.9,3.95735852]
[1750386303241,6.388,2527.1,2526.8,3.95750378]
[1750386303677,6.388,2527.1,2526.9,3.95741252]
[1750386304783,1.632,2527.0,2526.9,3.95741252]
[1750386310325,1.632,2527.0,2526.9,3.95741818]
[1750386315011,10.0,2527.2,2527.1,3.95706743]
[1750386315183,0.7809,2527.4,2527.2,3.95679523]
[1750386315184,10.0,2527.4,2527.2,3.95679523]
[1750386315377,18.019,2527.3,2527.2,3.95679523]
[1750386316395,10.0,2527.3,2527.2,3.95679523]
[1750386316575,18.019,2527.3,2527.2,3.95679523]
[1750386317514,11.632,2527.3,2527.2,3.95679523]
[1750386317690,18.019,2527.3,2527.2,4.73699523]
[1750386318413,18.019,2527.3,2527.2,4.7371484]
[1750386320912,11.632,2527.3,2527.2,4.7371484]
[1750386321117,18.019,2527.3,2527.2,4.7371484]
[1750386325724,23.53774585,2527.3,2527.0,0.8053]
[1750386326107,23.53774585,2527.3,2527.0,4.76241028]
[1750386326420,23.53774585,2527.3,2527.1,3.95709419]
[1750386326621,18.019,2527.3,2527.1,3.95709419]
[1750386328223,8.019,2527.3,2527.1,3.95709419]
[1750386332959,8.019,2527.3,2527.0,4.76247611]
[1750386333230,8.019,2527.3,2527.1,3.9570992]
[1750386333592,13.53774585,2527.3,2527.0,3.95717752]
[1750386334933,13.53774585,2527.3,2527.1,3.95709152]
[1750386335133,15.36504036,2527.3,2527.1,3.95709152]
[1750386337234,15.36504036,2527.3,2526.9,3.95735753]
[1750386337403,15.36504036,2527.3,2527.0,3.95716908]
[1750386338712,15.36504036,2527.3,2527.1,3.95710498]
[1750386339043,0.0564,2527.2,2527.1,3.95710498]
[1750386340642,0.0564,2527.2,2527.0,3.95718145]
[1750386340940,6.4424,2527.1,2527.0,3.95718145]
[1750386341344,6.4424,2527.1,2526.9,3.95735478]
[1750386341549,6.4424,2527.1,2526.6,0.8175]
[1750386341550,0.0564,2527.0,2526.6,0.8175]
[1750386341750,6.386,2526.9,2526.8,3.95755934]
[1750386341936,6.4424,2526.9,2526.8,3.95755934]
[1750386349731,8.0734,2526.9,2526.8,3.95755934]
[1750386349932,8.017,2526.9,2526.8,3.95755934]
[1750386354361,8.0764,2526.9,2526.8,3.95755934]
[1750386355481,0.0594,2526.9,2526.8,3.95755934]
[1750386355773,0.0594,2527.1,2527.0,3.95712755]
[1750386355972,8.0744,2527.1,2527.0,3.95712755]
[1750386356175,8.015,2527.1,2527.0,3.95712755]
[1750386356473,8.0744,2527.1,2527.0,3.95712755]
[1750386356781,16.83966044,2527.1,2527.0,3.95712755]
[1750386356997,16.78026044,2527.1,2526.9,3.95732744]
[1750386357155,0.0594,2527.0,2526.9,3.95732744]
[1750386357474,0.0594,2527.0,2526.4,0.7641]
[1750386357702,5.51874585,2526.9,2526.4,0.7641]
[1750386357878,5.57814585,2526.9,2526.8,3.95755198]
[1750386358203,11.96314585,2526.9,2526.8,3.95755198]
[1750386358896,11.90374585,2526.9,2526.7,3.95769874]
[1750386359065,0.0594,2526.8,2526.7,3.95769874]
[1750386362899,6.385,2526.9,2526.8,3.95757479]
[1750386363270,6.4444,2526.9,2526.8,3.95757479]
[1750386365702,8.0744,2526.9,2526.8,3.95757479]
[1750386365908,8.015,2526.9,2526.8,3.95757479]
[1750386366199,0.0594,2526.8,2526.6,3.95779849]
[1750386367586,8.015,2526.9,2526.7,3.95771998]
[1750386367782,0.0594,2526.8,2526.7,3.95771998]
[1750386368364,8.015,2526.9,2526.6,3.9578129]
[1750386368565,0.0594,2526.8,2526.6,3.95776782]
[1750386368898,0.0594,2526.8,2526.7,3.95773142]
[1750386372498,8.015,2526.9,2526.8,3.95757479]
[1750386372660,8.0744,2526.9,2526.8,3.95757479]
[1750386376004,0.0594,2526.9,2526.8,3.95757479]
[1750386376201,8.014,2526.9,2526.8,3.95757479]
[1750386381901,8.0734,2526.9,2526.7,3.95764662]
[1750386382903,9.21705061,2526.9,2526.7,3.95764662]
[1750386383103,0.0616,2526.8,2526.7,3.95764662]
[1750386383807,0.0616,2526.8,2526.1,4.01816575]
[1750386383981,0.0616,2526.8,2526.5,3.95797963]
[1750386384175,8.014,2526.9,2526.5,3.95797963]
[1750386384487,0.0616,2526.8,2526.5,3.95797963]
[1750386384691,2.42774194,2526.8,2526.5,3.95797963]
[1750386385002,0.0616,2526.7,2526.5,3.95797963]
[1750386385201,6.384,2526.6,2526.5,3.95797963]
[1750386385380,6.4456,2526.6,2526.5,3.95797963]
[1750386387105,6.4456,2526.6,2526.4,3.95811029]
[1750386387280,6.4456,2526.6,2526.4,3.95806322]
[1750386387668,6.4456,2526.6,2526.5,3.95804472]
[1750386390606,0.7747,2527.1,2526.9,3.95741238]
[1750386390810,10.0,2527.3,2526.8,0.8185]
[1750386390811,0.0616,2527.3,2526.8,0.8185]
[1750386390965,9.507,2527.4,2527.3,3.95679183]
[1750386391170,17.52,2527.4,2527.3,3.95679183]
[1750386391383,27.52,2527.4,2527.3,3.95679183]
[1750386392166,19.507,2527.4,2527.3,3.95679183]
[1750386392370,27.519,2527.4,2527.3,3.95679183]
[1750386392768,19.507,2527.4,2527.3,3.95679183]
[1750386393019,27.519,2527.4,2527.3,3.95679183]
[1750386393201,19.507,2527.4,2527.3,3.95679183]
[1750386393507,27.519,2527.4,2527.3,3.95679183]
[1750386394271,19.507,2527.4,2527.3,3.95679183]
[1750386394711,27.519,2527.4,2527.3,3.95679183]
[1750386396409,27.519,2527.4,2527.1,0.8185]
[1750386396410,10.0,2527.3,2527.1,0.8185]
[1750386396612,17.519,2527.4,2527.1,0.8185]
[1750386396613,6.383,2527.2,2527.1,4.7755199]
[1750386404922,6.383,2527.2,2527.1,3.9570199]
[1750386405119,6.4446,2527.2,2527.1,3.9570199]
[1750386405489,6.383,2527.2,2527.1,3.9570199]
[1750386406193,6.383,2527.2,2527.1,4.7484385]
[1750386408292,19.507,2527.4,2527.3,3.95679183]
[1750386408491,27.518,2527.4,2527.3,3.95679183]
[1750386409626,19.507,2527.4,2527.3,3.95679183]
[1750386409800,17.518,2527.4,2527.3,3.95679183]
[1750386410003,17.518,2527.4,2527.3,5.68580431]
[1750386410404,11.136,2527.4,2527.3,5.68580431]
[1750386410601,17.518,2527.4,2527.3,5.68580431]
[1750386419767,11.136,2527.4,2527.3,5.68580431]
[1750386419977,17.517,2527.4,2527.3,5.68580431]
[1750386420962,8.01,2527.4,2527.3,5.68580431]
[1750386422140,8.01,2527.4,2527.3,5.62630431]
[1750386423164,8.01,2527.4,2527.3,5.68730431]
[1750386426758,0.0607,2527.8,2527.6,3.9561828]
[1750386426959,8.0697,2527.7,2527.6,3.9561828]
[1750386429061,0.0607,2527.7,2527.6,3.9561828]
[1750386429366,8.0697,2527.7,2527.6,3.9561828]
[1750386430072,8.009,2527.7,2527.3,0.799]
[1750386430280,8.009,2527.7,2527.4,3.95650381]
[1750386430572,8.009,2527.7,2527.5,3.95647873]
[1750386430777,0.0607,2527.6,2527.5,3.95647873]
[1750386432434,7.65822887,2527.9,2527.5,3.95647873]
[1750386432641,18.008,2527.8,2527.6,3.95631551]
[1750386433342,18.0687,2527.8,2527.6,3.95631551]
[1750386434876,0.0607,2528.0,2527.7,3.95616568]
[1750386435044,10.0,2527.8,2527.7,3.95616568]
[1750386435574,0.0607,2527.7,2527.6,3.95623195]
[1750386435766,1.8615,2527.7,2527.6,3.95623195]
[1750386435970,0.0607,2527.7,2527.6,3.95623195]
[1750386436878,0.0607,2527.7,2527.5,3.95637052]
[1750386437075,0.0607,2527.7,2527.6,3.9563222]
[1750386438472,0.0607,2527.7,2527.5,3.95638693]
[1750386438654,0.0607,2527.7,2527.6,3.9563222]
[1750386438854,6.4407,2527.7,2527.6,3.9563222]
[1750386442888,13.95562275,2528.1,2527.6,4.7203222]
[1750386443087,13.95562275,2528.1,2527.5,3.95647231]
[1750386443088,10.0,2527.9,2527.7,3.95613238]
[1750386443302,0.0597,2527.8,2527.7,3.95613238]
[1750386443993,10.8216,2527.9,2527.6,3.95623258]
[1750386444383,0.0597,2527.8,2527.6,3.95623258]
[1750386444581,6.4397,2527.7,2527.6,3.95623258]
[1750386446929,6.4397,2527.7,2527.3,0.824]
[1750386447086,0.0597,2527.5,2526.9,0.824]
[1750386447277,0.8813,2527.3,2526.7,0.824]
[1750386447472,0.0597,2527.2,2526.5,1.6156326]
[1750386447691,0.0597,2527.2,2526.0,4.71]
[1750386447692,0.0597,2527.0,2526.7,3.95762243]
[1750386447890,1.628,2526.9,2526.8,3.95754184]
[1750386448091,1.6877,2526.9,2526.8,3.95754184]
[1750386449525,0.0597,2526.8,2526.7,3.95764213]
[1750386449715,6.38,2526.8,2526.6,3.95781279]
[1750386450025,0.0597,2526.7,2526.6,3.95781279]
[1750386451302,6.38,2526.8,2526.7,3.95773142]
[1750386451303,6.4397,2526.8,2526.7,3.95773142]
[1750386454732,0.8441,2526.7,2526.6,3.95782512]
[1750386456634,0.0597,2526.8,2526.7,3.95773142]
[1750386456935,0.0597,2526.7,2526.3,0.0575]
[1750386457129,0.0597,2526.7,2526.6,3.95788807]
[1750386457724,8.009,2526.8,2526.7,3.95773142]
[1750386457919,8.0687,2526.8,2526.7,3.95773142]
[1750386458333,8.0727,2526.8,2526.7,3.95773142]
[1750386458742,0.8102,2527.1,2526.8,3.95757479]
[1750386458945,18.0727,2527.0,2526.9,3.95728529]
[1750386459614,18.0727,2527.0,2526.8,3.95748794]
[1750386460419,10.0597,2527.0,2526.8,3.95748794]
[1750386460625,18.014,2526.9,2526.8,3.95748794]
[1750386463449,18.013,2526.9,2526.8,3.95748794]
[1750386464748,18.0727,2526.9,2526.6,3.95773532]
[1750386464953,0.0597,2526.8,2526.6,3.95773532]
[1750386465120,6.385,2526.7,2526.6,3.95773532]
[1750386466726,6.4447,2526.7,2526.6,3.95773532]
[1750386467135,6.385,2526.7,2526.6,3.95773532]
[1750386469952,8.018,2526.7,2526.6,3.95773532]
[1750386470152,8.018,2526.7,2526.5,3.95795398]
[1750386470356,8.0777,2526.7,2526.6,3.95788807]
[1750386470946,14.67945296,2526.9,2526.7,3.95772902]
[1750386471141,13.89815296,2526.9,2526.8,3.95757479]
[1750386471426,21.91515296,2526.9,2526.7,3.95765254]
[1750386471620,21.97485296,2526.9,2526.7,3.95765254]
[1750386471816,3.81430492,2526.8,2526.7,3.95765254]
[1750386472058,18.0767,2526.9,2526.7,3.95765254]
[1750386472423,3.88379708,2526.8,2526.7,3.95765254]
[1750386473456,11.90179708,2526.8,2526.7,3.95765254]
[1750386478759,11.96329708,2526.8,2526.6,3.95779353]
[1750386479158,11.90179708,2526.8,2526.6,3.95779353]
[1750386479567,11.90179708,2526.8,2526.5,3.95797745]
[1750386479765,11.96329708,2526.8,2526.5,3.95797745]
[1750386479943,0.0615,2526.7,2526.5,3.95797745]
[1750386480145,6.388,2526.6,2526.5,3.95797745]
[1750386480458,5.51179708,2526.8,2526.6,3.95787811]
[1750386480673,6.388,2526.7,2526.6,3.95787811]
[1750386481451,3.88379708,2526.8,2526.7,3.95773142]
[1750386481652,11.90479708,2526.8,2526.7,0.8273]
[1750386482351,11.90479708,2526.8,2526.7,4.78503142]
[1750386483174,3.88379708,2526.8,2526.7,4.78503142]
[1750386483349,11.90479708,2526.8,2526.7,4.72443142]
[1750386483953,11.90479708,2526.8,2526.7,3.95773142]
[1750386484879,3.88379708,2526.8,2526.7,3.95773142]
[1750386485179,11.90479708,2526.8,2526.7,3.95773142]
[1750386486775,3.88379708,2526.8,2526.7,3.95773142]
[1750386486979,11.90379708,2526.8,2526.7,3.95773142]
[1750386490493,3.88379708,2526.8,2526.7,3.95773142]
[1750386490694,11.90279708,2526.8,2526.7,3.95773142]
[1750386491762,11.96429708,2526.8,2526.7,3.95773142]
[1750386493787,11.90279708,2526.8,2526.7,3.95773142]
[1750386494477,11.96429708,2526.8,2526.7,3.95773142]
[1750386495302,11.90279708,2526.8,2526.7,3.95773142]
[1750386495664,11.96429708,2526.8,2526.7,3.95773142]
[1750386495882,11.90279708,2526.8,2526.7,3.95773142]
[1750386507924,11.95959708,2526.8,2526.7,3.95773142]
[1750386510850,3.94059708,2526.8,2526.7,3.95773142]
[1750386511140,11.95059708,2526.8,2526.7,3.95773142]
[1750386512543,11.89379708,2526.8,2526.7,3.95773142]
[1750386512748,11.95059708,2526.8,2526.7,3.95773142]
[1750386514767,10.8292,2526.6,2525.7,1.21742221]
[1750386514973,0.0568,2526.4,2526.0,3.95874141]
[1750386515156,8.023,2526.3,2526.0,3.95874141]
[1750386515358,6.395,2526.2,2526.1,3.95867146]
[1750386515763,0.0568,2526.3,2526.2,3.95851476]
[1750386515961,8.0798,2526.3,2526.2,3.95851476]
[1750386516133,0.0568,2526.3,2526.2,3.95851476]
[1750386516336,8.0788,2526.3,2526.2,3.95851476]
[1750386517278,8.022,2526.3,2526.2,3.95851476]
[1750386518812,8.022,2526.3,2525.9,0.0618]
[1750386518813,8.0788,2526.3,2526.1,3.95859837]
[1750386519109,8.7803,2526.3,2526.0,3.95877952]
[1750386519278,0.0568,2526.2,2526.0,3.95880904]
[1750386519463,6.4498,2526.1,2526.0,3.95880904]
[1750386519665,6.393,2526.1,2525.9,3.95890335]
[1750386519971,0.0568,2526.0,2525.9,3.95890335]
[1750386520655,6.393,2526.1,2526.0,3.95882818]
[1750386520861,6.4498,2526.1,2526.0,3.95882818]
[1750386523011,6.393,2526.1,2526.0,3.95882818]
[1750386523894,0.0568,2526.2,2526.1,3.95867146]
[1750386524231,8.023,2526.2,2526.1,5.63482142]
[1750386525229,8.023,2526.2,2526.1,5.57302142]
[1750386525532,8.023,2526.2,2526.1,4.78127146]
[1750386526637,0.0568,2526.5,2526.2,3.95837416]
[1750386526940,8.0828,2526.4,2526.2,3.95851476]
[1750386527248,1.6858,2526.4,2526.3,3.95835807]
[1750386527412,8.0828,2526.4,2526.3,3.95835807]
[1750386531389,8.0828,2526.4,2526.2,3.95841866]
[1750386534409,8.0828,2526.4,2526.3,3.95835807]
[1750386535297,8.0798,2526.4,2526.3,3.95835807]
[1750386535600,8.0798,2526.4,2526.2,3.95842588]
[1750386536331,8.023,2526.4,2526.2,3.95842588]
[1750386536523,0.0606,2526.3,2526.1,3.95860183]
[1750386536827,0.0606,2526.3,2526.2,3.95851476]